[Event "Early-Titled-Tuesday-Blitz-January-16-2024"]
[Site "Chess.com"]
[Date "2024.01.16"]
[Round "9"]
[White "Bushonica"]
[Black "UnTucopalaTimba"]
[Result "1-0"]
[WhiteElo "1819"]
[BlackElo "1987"]
[TimeControl "180+1"]
[EndTime "9:48:24 PST"]
[Termination "Bushonica won by resignation"]

1. e4 {[%clk 0:03:00.9]} 1... c6 {[%clk 0:02:58.7]} 2. d4 {[%clk 0:03:00.4]}
2... d5 {[%clk 0:02:58.6]} 3. exd5 {[%clk 0:02:59.4]} 3... cxd5 {[%clk
0:02:58.6]} 4. Bd3 {[%clk 0:02:59.6]} 4... Nf6 {[%clk 0:02:56.6]} 5. c3 {[%clk
0:02:57.7]} 5... Bg4 {[%clk 0:02:54.3]} 6. Nf3 {[%clk 0:02:52.4]} 6... Nc6
{[%clk 0:02:53.5]} 7. h3 {[%clk 0:02:51.4]} 7... Bh5 {[%clk 0:02:53.1]} 8. Bf4
{[%clk 0:02:48.8]} 8... e6 {[%clk 0:02:50.6]} 9. Nbd2 {[%clk 0:02:46.5]} 9...
Be7 {[%clk 0:02:48.2]} 10. Qb3 {[%clk 0:02:44.9]} 10... Qc8 {[%clk 0:02:37.7]}
11. Ne5 {[%clk 0:02:37.5]} 11... Bg6 {[%clk 0:02:29.5]} 12. Bxg6 {[%clk
0:02:31.3]} 12... hxg6 {[%clk 0:02:28.9]} 13. O-O {[%clk 0:02:25.1]} 13... O-O
{[%clk 0:02:27.5]} 14. Rae1 {[%clk 0:02:17.4]} 14... Nd7 {[%clk 0:02:23]} 15.
Ndf3 {[%clk 0:02:14.6]} 15... a6 {[%clk 0:02:11.7]} 16. a4 {[%clk 0:02:11.4]}
16... Ndxe5 {[%clk 0:02:01.5]} 17. Nxe5 {[%clk 0:02:08.9]} 17... Bf6 {[%clk
0:01:56.8]} 18. Ng4 {[%clk 0:02:06.3]} 18... Be7 {[%clk 0:01:52]} 19. Qc2 {[%clk
0:01:59.2]} 19... Na5 {[%clk 0:01:43.4]} 20. Qd3 {[%clk 0:01:55.5]} 20... Nc4
{[%clk 0:01:38.4]} 21. b3 {[%clk 0:01:52.9]} 21... Nd6 {[%clk 0:01:34.4]} 22.
Bxd6 {[%clk 0:01:50.3]} 22... Bxd6 {[%clk 0:01:32.6]} 23. Ne5 {[%clk 0:01:50.3]}
23... Bxe5 {[%clk 0:01:30.3]} 24. Rxe5 {[%clk 0:01:49.3]} 24... Qc6 {[%clk
0:01:27.3]} 25. Rc1 {[%clk 0:01:48.8]} 25... Rac8 {[%clk 0:01:22.1]} 26. Qg3
{[%clk 0:01:48.4]} 26... f6 {[%clk 0:01:05.2]} 27. Re3 {[%clk 0:01:46.9]} 27...
Kf7 {[%clk 0:01:01.7]} 28. Qg4 {[%clk 0:01:42.9]} 28... Rfe8 {[%clk 0:00:52.3]}
29. Rg3 {[%clk 0:01:39.1]} 29... g5 {[%clk 0:00:42.5]} 30. h4 {[%clk 0:01:30.6]}
30... g6 {[%clk 0:00:35.6]} 31. hxg5 {[%clk 0:01:22.9]} 31... f5 {[%clk
0:00:35.2]} 32. Qf4 {[%clk 0:01:19.3]} 32... Qc7 {[%clk 0:00:26.9]} 33. Qxc7+
{[%clk 0:01:06.5]} 33... Rxc7 {[%clk 0:00:26.5]} 34. Rh3 {[%clk 0:01:06.6]}
34... Kg7 {[%clk 0:00:25.8]} 35. Re1 {[%clk 0:01:04.6]} 35... Rc6 {[%clk
0:00:19.7]} 36. f4 {[%clk 0:00:55.6]} 36... Rec8 {[%clk 0:00:18]} 37. Ree3
{[%clk 0:00:54.9]} 37... b5 {[%clk 0:00:16.5]} 38. axb5 {[%clk 0:00:53.8]} 38...
axb5 {[%clk 0:00:16.5]} 39. b4 {[%clk 0:00:52.4]} 39... Ra8 {[%clk 0:00:15.9]}
40. Rh6 {[%clk 0:00:49.9]} 40... Ra1+ {[%clk 0:00:14.9]} 41. Kh2 {[%clk
0:00:49.7]} 41... Rc1 {[%clk 0:00:11]} 42. Reh3 {[%clk 0:00:49.6]} 42... R6xc3
{[%clk 0:00:09.8]} 43. Rh7+ {[%clk 0:00:49.6]} 43... Kf8 {[%clk 0:00:09.6]} 44.
Rh8+ {[%clk 0:00:49.8]} 44... Ke7 {[%clk 0:00:09.6]} 45. R3h7+ {[%clk
0:00:50.4]} 45... Kd6 {[%clk 0:00:09.6]} 46. Rd8+ {[%clk 0:00:50.8]} 46... Kc6
{[%clk 0:00:09.4]} 47. Re8 {[%clk 0:00:48.1]} 47... Kd6 {[%clk 0:00:08.7]} 48.
Rd8+ {[%clk 0:00:47.9]} 48... Kc6 {[%clk 0:00:08.8]} 49. Re7 {[%clk 0:00:48.1]}
49... Kb6 {[%clk 0:00:07.9]} 50. Rb8+ {[%clk 0:00:45]} 50... Kc6 {[%clk
0:00:07.7]} 51. Rxe6+ {[%clk 0:00:44.8]} 51... Kd7 {[%clk 0:00:07.5]} 52. Rxg6
{[%clk 0:00:44.4]} 1-0

[Event "Early-Titled-Tuesday-Blitz-January-16-2024"]
[Site "Chess.com"]
[Date "2024.01.16"]
[Round "9"]
[White "Zavgorodniy_Sergiy"]
[Black "Doublekk14"]
[Result "1/2-1/2"]
[WhiteElo "2605"]
[BlackElo "2289"]
[TimeControl "180+1"]
[EndTime "9:48:25 PST"]
[Termination "Game drawn by repetition"]

1. e4 {[%clk 0:02:57.3]} 1... c5 {[%clk 0:02:58.7]} 2. Nf3 {[%clk 0:02:56.7]}
2... e6 {[%clk 0:02:58.9]} 3. g3 {[%clk 0:02:55.9]} 3... Nc6 {[%clk 0:02:57.3]}
4. Bg2 {[%clk 0:02:55.1]} 4... d5 {[%clk 0:02:57.7]} 5. e5 {[%clk 0:02:54.1]}
5... Nge7 {[%clk 0:02:53.3]} 6. O-O {[%clk 0:02:48]} 6... Ng6 {[%clk 0:02:52.3]}
7. Re1 {[%clk 0:02:48.4]} 7... Qc7 {[%clk 0:02:51.3]} 8. d4 {[%clk 0:02:40.4]}
8... cxd4 {[%clk 0:02:49.1]} 9. Bf4 {[%clk 0:02:40.5]} 9... Nxf4 {[%clk
0:02:47.3]} 10. gxf4 {[%clk 0:02:41.4]} 10... Bc5 {[%clk 0:02:45.2]} 11. Nbd2
{[%clk 0:02:40.4]} 11... Bd7 {[%clk 0:02:44.6]} 12. Nb3 {[%clk 0:02:40.8]} 12...
Bb6 {[%clk 0:02:44.8]} 13. a4 {[%clk 0:02:40.3]} 13... a5 {[%clk 0:02:42.6]} 14.
Nbxd4 {[%clk 0:02:39.8]} 14... Nxd4 {[%clk 0:02:36.1]} 15. Nxd4 {[%clk
0:02:40.7]} 15... Rc8 {[%clk 0:02:34.7]} 16. c3 {[%clk 0:02:31.9]} 16... O-O
{[%clk 0:02:27]} 17. f5 {[%clk 0:02:05.6]} 17... Bxd4 {[%clk 0:02:14.8]} 18.
cxd4 {[%clk 0:02:06.5]} 18... Qc2 {[%clk 0:02:11.9]} 19. Rc1 {[%clk 0:01:58.1]}
19... Qxf5 {[%clk 0:02:09]} 20. Qd2 {[%clk 0:01:38.6]} 20... b6 {[%clk
0:02:07.4]} 21. b3 {[%clk 0:01:36.8]} 21... h6 {[%clk 0:02:03.7]} 22. h3 {[%clk
0:01:31]} 22... Qg5 {[%clk 0:01:53.6]} 23. f4 {[%clk 0:01:25.5]} 23... Qf5
{[%clk 0:01:50.8]} 24. Bf1 {[%clk 0:01:15.6]} 24... Qg6+ {[%clk 0:01:48.4]} 25.
Kh2 {[%clk 0:01:13.4]} 25... Qh5 {[%clk 0:01:47.6]} 26. Ba6 {[%clk 0:01:06.4]}
26... Rxc1 {[%clk 0:01:38.7]} 27. Rxc1 {[%clk 0:01:07.3]} 27... Qf3 {[%clk
0:01:38]} 28. Rc3 {[%clk 0:01:04.2]} 28... Qh5 {[%clk 0:01:26.4]} 29. Be2 {[%clk
0:01:02.3]} 29... Qf5 {[%clk 0:01:22.9]} 30. Rc7 {[%clk 0:00:55.6]} 30... Be8
{[%clk 0:01:17.2]} 31. Bd3 {[%clk 0:00:45.3]} 31... Qh5 {[%clk 0:01:15.7]} 32.
Qf2 {[%clk 0:00:43.6]} 32... Qd1 {[%clk 0:00:59.6]} 33. Bc2 {[%clk 0:00:42.6]}
33... Qh5 {[%clk 0:00:55]} 34. f5 {[%clk 0:00:42.8]} 34... exf5 {[%clk
0:00:48.2]} 35. Bxf5 {[%clk 0:00:43.7]} 35... g6 {[%clk 0:00:44]} 36. e6 {[%clk
0:00:35.2]} 36... Bxa4 {[%clk 0:00:30.5]} 37. Rxf7 {[%clk 0:00:24.8]} 37... gxf5
{[%clk 0:00:15.3]} 38. Qg3+ {[%clk 0:00:22.9]} 38... Qg5 {[%clk 0:00:14.2]} 39.
Qc7 {[%clk 0:00:16.6]} 39... Rxf7 {[%clk 0:00:07.9]} 40. Qxf7+ {[%clk
0:00:14.8]} 40... Kh8 {[%clk 0:00:07.9]} 41. bxa4 {[%clk 0:00:13.5]} 41... Qd2+
{[%clk 0:00:05.8]} 42. Kg3 {[%clk 0:00:13.8]} 42... Qe3+ {[%clk 0:00:05.7]} 43.
Kg2 {[%clk 0:00:14.2]} 43... Qe2+ {[%clk 0:00:05.5]} 44. Kg3 {[%clk 0:00:14.8]}
44... Qe3+ {[%clk 0:00:05.6]} 45. Kg2 {[%clk 0:00:15.4]} 45... Qe2+ {[%clk
0:00:05.8]} 46. Kg3 {[%clk 0:00:16.1]} 46... Qe3+ {[%clk 0:00:06]} 1/2-1/2

[Event "Early-Titled-Tuesday-Blitz-January-16-2024"]
[Site "Chess.com"]
[Date "2024.01.16"]
[Round "9"]
[White "talaicito"]
[Black "ChessBliss09"]
[Result "0-1"]
[WhiteElo "2266"]
[BlackElo "2102"]
[TimeControl "180+1"]
[EndTime "9:48:29 PST"]
[Termination "ChessBliss09 won on time"]

1. d4 {[%clk 0:03:00.9]} 1... d5 {[%clk 0:02:50.6]} 2. Nc3 {[%clk 0:02:59.6]}
2... Nf6 {[%clk 0:02:48.8]} 3. Bf4 {[%clk 0:03:00]} 3... c6 {[%clk 0:02:43.1]}
4. e3 {[%clk 0:02:59.8]} 4... Bf5 {[%clk 0:02:42]} 5. f3 {[%clk 0:02:59.2]} 5...
e6 {[%clk 0:02:39.9]} 6. g4 {[%clk 0:02:59.2]} 6... Bg6 {[%clk 0:02:40.1]} 7. h4
{[%clk 0:02:59.7]} 7... h5 {[%clk 0:02:39.9]} 8. g5 {[%clk 0:02:59.3]} 8... Nfd7
{[%clk 0:02:38.7]} 9. Bd3 {[%clk 0:02:59.8]} 9... Bxd3 {[%clk 0:02:37.1]} 10.
Qxd3 {[%clk 0:03:00.7]} 10... g6 {[%clk 0:02:37.3]} 11. Nge2 {[%clk 0:02:58.8]}
11... b5 {[%clk 0:02:33.3]} 12. e4 {[%clk 0:02:51.8]} 12... b4 {[%clk 0:02:27]}
13. Na4 {[%clk 0:02:38.8]} 13... Nb6 {[%clk 0:02:18.5]} 14. Nc5 {[%clk
0:02:35.6]} 14... N8d7 {[%clk 0:01:48.7]} 15. Nb7 {[%clk 0:02:35]} 15... Qc8
{[%clk 0:01:41.9]} 16. Nd6+ {[%clk 0:02:34.2]} 16... Bxd6 {[%clk 0:01:41.5]} 17.
Bxd6 {[%clk 0:02:35.1]} 17... Nc4 {[%clk 0:01:39]} 18. Bxb4 {[%clk 0:02:22.5]}
18... a5 {[%clk 0:01:35]} 19. Ba3 {[%clk 0:02:12]} 19... Qb7 {[%clk 0:01:25.6]}
20. Nf4 {[%clk 0:01:46.6]} 20... Qc7 {[%clk 0:00:45]} 21. e5 {[%clk 0:01:28.2]}
21... Nxa3 {[%clk 0:00:39.7]} 22. Qxa3 {[%clk 0:01:08.1]} 22... c5 {[%clk
0:00:39.5]} 23. c3 {[%clk 0:01:07.2]} 23... O-O {[%clk 0:00:37.3]} 24. O-O
{[%clk 0:00:57.8]} 24... cxd4 {[%clk 0:00:27.1]} 25. cxd4 {[%clk 0:00:57.2]}
25... Qb6 {[%clk 0:00:19.3]} 26. Qe3 {[%clk 0:00:48.5]} 26... Qxb2 {[%clk
0:00:17.2]} 27. Rfb1 {[%clk 0:00:37.3]} 27... Qc2 {[%clk 0:00:14.7]} 28. Rb7
{[%clk 0:00:30.9]} 28... Rad8 {[%clk 0:00:09.2]} 29. Qd3 {[%clk 0:00:17.9]}
29... Qc6 {[%clk 0:00:06.3]} 30. Rab1 {[%clk 0:00:16.5]} 30... Kg7 {[%clk
0:00:06.1]} 31. a3 {[%clk 0:00:13.6]} 31... a4 {[%clk 0:00:05.7]} 32. R7b4
{[%clk 0:00:11]} 32... Rb8 {[%clk 0:00:04.9]} 33. Ne2 {[%clk 0:00:05.5]} 33...
Rxb4 {[%clk 0:00:04.6]} 34. Rxb4 {[%clk 0:00:05.7]} 34... Rb8 {[%clk 0:00:04.3]}
35. Qc3 {[%clk 0:00:05.6]} 35... Qxc3 {[%clk 0:00:03.8]} 36. Nxc3 {[%clk
0:00:06.5]} 36... Rxb4 {[%clk 0:00:03.9]} 37. axb4 {[%clk 0:00:06.9]} 37... Nb6
{[%clk 0:00:04.4]} 38. Kf2 {[%clk 0:00:04.4]} 38... a3 {[%clk 0:00:04.8]} 39.
Ke2 {[%clk 0:00:04.3]} 39... Nc4 {[%clk 0:00:04.6]} 40. Kd3 {[%clk 0:00:03.9]}
40... Kf8 {[%clk 0:00:04.9]} 41. Kc2 {[%clk 0:00:02.3]} 41... Ke7 {[%clk
0:00:05.6]} 42. Kb3 {[%clk 0:00:02.4]} 42... Kd7 {[%clk 0:00:06.2]} 43. Nb5
{[%clk 0:00:01.8]} 43... Kc6 {[%clk 0:00:06.1]} 44. Nxa3 {[%clk 0:00:01.8]}
44... Nd2+ {[%clk 0:00:06.3]} 45. Kc3 {[%clk 0:00:01.4]} 45... Nxf3 {[%clk
0:00:07.2]} 0-1

[Event "Early-Titled-Tuesday-Blitz-January-16-2024"]
[Site "Chess.com"]
[Date "2024.01.16"]
[Round "9"]
[White "JCVanDamme10"]
[Black "The_Straightforward_Rook"]
[Result "0-1"]
[WhiteElo "2317"]
[BlackElo "2464"]
[TimeControl "180+1"]
[EndTime "9:48:30 PST"]
[Termination "The_Straightforward_Rook won on time"]

1. e4 {[%clk 0:03:00.9]} 1... c6 {[%clk 0:02:59.9]} 2. d4 {[%clk 0:03:00.4]}
2... d5 {[%clk 0:03:00.8]} 3. e5 {[%clk 0:03:00.9]} 3... Bf5 {[%clk 0:03:00.5]}
4. Nf3 {[%clk 0:02:59.9]} 4... e6 {[%clk 0:03:00.7]} 5. Be2 {[%clk 0:03:00.5]}
5... Nd7 {[%clk 0:03:01.2]} 6. O-O {[%clk 0:03:00.4]} 6... a5 {[%clk 0:03:01.8]}
7. Nbd2 {[%clk 0:02:55.9]} 7... a4 {[%clk 0:03:00.2]} 8. Re1 {[%clk 0:02:52.4]}
8... f6 {[%clk 0:02:58]} 9. Nf1 {[%clk 0:02:47.3]} 9... fxe5 {[%clk 0:02:57.8]}
10. dxe5 {[%clk 0:02:34.4]} 10... Bc5 {[%clk 0:02:53.9]} 11. Ng3 {[%clk
0:02:34.2]} 11... Bg6 {[%clk 0:02:53.7]} 12. Bd3 {[%clk 0:02:30.3]} 12... Ne7
{[%clk 0:02:52.6]} 13. Ng5 {[%clk 0:02:23.6]} 13... O-O {[%clk 0:02:20.4]} 14.
Nxe6 {[%clk 0:02:15.2]} 14... Bxf2+ {[%clk 0:02:20.2]} 15. Kh1 {[%clk
0:02:15.6]} 15... Qb6 {[%clk 0:02:16.4]} 16. Nxf8 {[%clk 0:02:09.1]} 16... Nxf8
{[%clk 0:02:17.3]} 17. Rf1 {[%clk 0:02:04.5]} 17... Bxg3 {[%clk 0:02:15.5]} 18.
hxg3 {[%clk 0:02:03.8]} 18... Bxd3 {[%clk 0:02:16]} 19. Qxd3 {[%clk 0:02:02.2]}
19... Ne6 {[%clk 0:02:13.3]} 20. Be3 {[%clk 0:01:49.1]} 20... Qxb2 {[%clk
0:02:11.7]} 21. Rab1 {[%clk 0:01:49.7]} 21... Qxe5 {[%clk 0:02:12]} 22. Rxb7
{[%clk 0:01:46.1]} 22... Ng6 {[%clk 0:02:01.9]} 23. Rff7 {[%clk 0:01:09]} 23...
Qxg3 {[%clk 0:01:54.5]} 24. Rxg7+ {[%clk 0:01:08.6]} 24... Nxg7 {[%clk
0:01:53.8]} 25. Rxg7+ {[%clk 0:01:07.7]} 25... Kxg7 {[%clk 0:01:52.5]} 26. Bd4+
{[%clk 0:01:07.7]} 26... Qe5 {[%clk 0:01:45.1]} 27. Bxe5+ {[%clk 0:01:02.3]}
27... Nxe5 {[%clk 0:01:46]} 28. Qg3+ {[%clk 0:00:59.4]} 28... Kf6 {[%clk
0:01:41.2]} 29. Qf4+ {[%clk 0:00:58.7]} 29... Ke6 {[%clk 0:01:38.1]} 30. Kg1
{[%clk 0:00:55.7]} 30... Nc4 {[%clk 0:01:29.6]} 31. Qh6+ {[%clk 0:00:49.6]}
31... Ke5 {[%clk 0:01:29]} 32. Qxc6 {[%clk 0:00:46.2]} 32... Rg8 {[%clk
0:01:14.6]} 33. Qc7+ {[%clk 0:00:42.9]} 33... Kd4 {[%clk 0:01:14.2]} 34. Qxh7
{[%clk 0:00:41.1]} 34... Rb8 {[%clk 0:01:09.1]} 35. Qd3+ {[%clk 0:00:39.8]}
35... Kc5 {[%clk 0:01:08.2]} 36. g4 {[%clk 0:00:35.6]} 36... Rb2 {[%clk
0:00:59.6]} 37. a3 {[%clk 0:00:33]} 37... Ra2 {[%clk 0:00:58.8]} 38. g5 {[%clk
0:00:31.7]} 38... Rxa3 {[%clk 0:00:59.4]} 39. Qf5 {[%clk 0:00:29.7]} 39... Ra1+
{[%clk 0:00:54.3]} 40. Kh2 {[%clk 0:00:28.9]} 40... a3 {[%clk 0:00:51.3]} 41. g6
{[%clk 0:00:28.7]} 41... a2 {[%clk 0:00:51.9]} 42. g7 {[%clk 0:00:26.8]} 42...
Rh1+ {[%clk 0:00:51.9]} 43. Kxh1 {[%clk 0:00:25.6]} 43... a1=Q+ {[%clk
0:00:52.5]} 44. Kh2 {[%clk 0:00:23.6]} 44... Qxg7 {[%clk 0:00:53]} 45. Qf2+
{[%clk 0:00:18.9]} 45... Qd4 {[%clk 0:00:52.7]} 46. Qf8+ {[%clk 0:00:15.2]}
46... Nd6 {[%clk 0:00:49.6]} 47. Qe7 {[%clk 0:00:05.9]} 47... Qd2+ {[%clk
0:00:45.1]} 48. Kh3 {[%clk 0:00:06.1]} 48... Qc3+ {[%clk 0:00:42.7]} 49. Kg4
{[%clk 0:00:03.3]} 49... Qb4+ {[%clk 0:00:39.8]} 50. Kh5 {[%clk 0:00:02.5]}
50... Kc4 {[%clk 0:00:39.5]} 0-1

[Event "Early-Titled-Tuesday-Blitz-January-16-2024"]
[Site "Chess.com"]
[Date "2024.01.16"]
[Round "9"]
[White "alvarorodriguezavila"]
[Black "ZuraTqebuchava"]
[Result "1-0"]
[WhiteElo "2305"]
[BlackElo "2146"]
[TimeControl "180+1"]
[EndTime "9:48:30 PST"]
[Termination "alvarorodriguezavila won on time"]

1. e4 {[%clk 0:03:00.9]} 1... e5 {[%clk 0:02:59.7]} 2. d4 {[%clk 0:02:56.3]}
2... d6 {[%clk 0:02:57.2]} 3. Nf3 {[%clk 0:02:53.6]} 3... exd4 {[%clk
0:02:55.8]} 4. Nxd4 {[%clk 0:02:53.2]} 4... Nc6 {[%clk 0:02:56.1]} 5. Nc3 {[%clk
0:02:51.7]} 5... Nf6 {[%clk 0:02:54.9]} 6. Bf4 {[%clk 0:02:51]} 6... Be7 {[%clk
0:02:50.5]} 7. Qd2 {[%clk 0:02:48.9]} 7... Nxd4 {[%clk 0:02:46.9]} 8. Qxd4
{[%clk 0:02:47.9]} 8... Be6 {[%clk 0:02:47.6]} 9. O-O-O {[%clk 0:02:46.1]} 9...
a5 {[%clk 0:02:47]} 10. f3 {[%clk 0:02:44.8]} 10... O-O {[%clk 0:02:39]} 11. Kb1
{[%clk 0:02:42.1]} 11... a4 {[%clk 0:02:38.8]} 12. a3 {[%clk 0:02:33.9]} 12...
b5 {[%clk 0:02:32.7]} 13. Bxb5 {[%clk 0:02:33.8]} 13... Qb8 {[%clk 0:02:14]} 14.
Bxa4 {[%clk 0:02:23]} 14... Nh5 {[%clk 0:02:07.3]} 15. Bc6 {[%clk 0:01:14.8]}
15... Nxf4 {[%clk 0:02:00.3]} 16. Bxa8 {[%clk 0:01:10.1]} 16... Qxa8 {[%clk
0:02:00.8]} 17. g3 {[%clk 0:01:06.3]} 17... Ng6 {[%clk 0:01:34.2]} 18. f4 {[%clk
0:01:04.3]} 18... Bf6 {[%clk 0:01:30.6]} 19. Qd3 {[%clk 0:01:01.7]} 19... Bg4
{[%clk 0:01:22.2]} 20. Rde1 {[%clk 0:00:58.7]} 20... Rb8 {[%clk 0:01:16.6]} 21.
Kc1 {[%clk 0:00:59.2]} 21... Qb7 {[%clk 0:01:05.7]} 22. Kd2 {[%clk 0:00:24.6]}
22... h5 {[%clk 0:00:33.8]} 23. Rb1 {[%clk 0:00:23.7]} 23... Qa7 {[%clk
0:00:30.4]} 24. Rhe1 {[%clk 0:00:23.7]} 24... Qf2+ {[%clk 0:00:28.7]} 25. Ne2
{[%clk 0:00:19.4]} 25... Qxh2 {[%clk 0:00:22.1]} 26. b4 {[%clk 0:00:14.3]} 26...
Qf2 {[%clk 0:00:14.4]} 27. Rf1 {[%clk 0:00:08.7]} 27... Qb6 {[%clk 0:00:09.6]}
28. a4 {[%clk 0:00:07.3]} 28... h4 {[%clk 0:00:07.9]} 29. a5 {[%clk 0:00:07.6]}
29... Qb7 {[%clk 0:00:06.2]} 30. gxh4 {[%clk 0:00:07]} 30... Nxh4 {[%clk
0:00:05.4]} 31. a6 {[%clk 0:00:06.6]} 31... Qa7 {[%clk 0:00:04.4]} 32. b5 {[%clk
0:00:05.5]} 32... Rb6 {[%clk 0:00:03]} 33. c4 {[%clk 0:00:05.3]} 33... Nf3+
{[%clk 0:00:02.1]} 34. Rxf3 {[%clk 0:00:05.1]} 34... Bxf3 {[%clk 0:00:02.4]} 35.
Qxf3 {[%clk 0:00:06]} 35... Rb8 {[%clk 0:00:02.4]} 36. Qd3 {[%clk 0:00:06.5]}
36... Qf2 {[%clk 0:00:02.1]} 37. Rb3 {[%clk 0:00:05.5]} 37... Re8 {[%clk
0:00:01.7]} 38. Kc2 {[%clk 0:00:05.2]} 38... Qe1 {[%clk 0:00:01.1]} 39. a7
{[%clk 0:00:05.1]} 39... Qa1 {[%clk 0:00:01.4]} 40. Ra3 {[%clk 0:00:05.1]} 1-0

[Event "Early-Titled-Tuesday-Blitz-January-16-2024"]
[Site "Chess.com"]
[Date "2024.01.16"]
[Round "9"]
[White "azikom"]
[Black "TitarovVasiliYouTube"]
[Result "1-0"]
[WhiteElo "2698"]
[BlackElo "2545"]
[TimeControl "180+1"]
[EndTime "9:48:33 PST"]
[Termination "azikom won on time"]

1. d4 {[%clk 0:02:31.7]} 1... d5 {[%clk 0:02:59.4]} 2. Nf3 {[%clk 0:02:27.5]}
2... Nf6 {[%clk 0:02:58.4]} 3. Bf4 {[%clk 0:02:26]} 3... e6 {[%clk 0:02:53.1]}
4. e3 {[%clk 0:02:26]} 4... Bd6 {[%clk 0:02:53.3]} 5. Bg3 {[%clk 0:02:26.1]}
5... O-O {[%clk 0:02:53.3]} 6. Nbd2 {[%clk 0:02:26]} 6... b6 {[%clk 0:02:46.6]}
7. c4 {[%clk 0:02:25.7]} 7... Bb7 {[%clk 0:02:45.2]} 8. Qc2 {[%clk 0:02:25.2]}
8... Nbd7 {[%clk 0:02:21.7]} 9. cxd5 {[%clk 0:02:24.6]} 9... Nxd5 {[%clk
0:02:15.1]} 10. a3 {[%clk 0:02:23.6]} 10... N5f6 {[%clk 0:02:06]} 11. Bd3 {[%clk
0:02:18]} 11... Rc8 {[%clk 0:02:00.3]} 12. Nc4 {[%clk 0:02:16.2]} 12... Be7
{[%clk 0:01:55.5]} 13. Qe2 {[%clk 0:02:06.4]} 13... c5 {[%clk 0:01:51.4]} 14.
Nd6 {[%clk 0:02:05.9]} 14... Bxd6 {[%clk 0:01:46]} 15. Bxd6 {[%clk 0:02:06.8]}
15... Re8 {[%clk 0:01:46.8]} 16. Bb5 {[%clk 0:01:57.3]} 16... Ne4 {[%clk
0:01:11.5]} 17. Bg3 {[%clk 0:01:50.8]} 17... Qe7 {[%clk 0:01:07.1]} 18. O-O
{[%clk 0:01:45.9]} 18... Red8 {[%clk 0:01:06.3]} 19. Rfd1 {[%clk 0:01:40.5]}
19... Nxg3 {[%clk 0:01:03.9]} 20. hxg3 {[%clk 0:01:40.2]} 20... Nf6 {[%clk
0:00:39.2]} 21. Rac1 {[%clk 0:01:34.9]} 21... Rd6 {[%clk 0:00:32.4]} 22. dxc5
{[%clk 0:01:33]} 22... Rxd1+ {[%clk 0:00:32.3]} 23. Qxd1 {[%clk 0:01:30]} 23...
Rxc5 {[%clk 0:00:31.5]} 24. Rxc5 {[%clk 0:01:29.6]} 24... Qxc5 {[%clk
0:00:29.7]} 25. Qd8+ {[%clk 0:01:28.3]} 25... Qf8 {[%clk 0:00:29.8]} 26. Qc7
{[%clk 0:01:27.9]} 26... Qc8 {[%clk 0:00:29.7]} 27. Qxc8+ {[%clk 0:01:24]} 27...
Bxc8 {[%clk 0:00:30.5]} 28. Ne5 {[%clk 0:01:24.6]} 28... Kf8 {[%clk 0:00:24.8]}
29. f3 {[%clk 0:01:20.6]} 29... Nd5 {[%clk 0:00:23.6]} 30. e4 {[%clk 0:01:19]}
30... Nc7 {[%clk 0:00:23.4]} 31. Be2 {[%clk 0:01:14.4]} 31... Bb7 {[%clk
0:00:20]} 32. Kf2 {[%clk 0:01:14]} 32... Ke7 {[%clk 0:00:19.3]} 33. Ke3 {[%clk
0:01:14]} 33... f6 {[%clk 0:00:19.1]} 34. Nd3 {[%clk 0:01:12.8]} 34... Ba6
{[%clk 0:00:18.6]} 35. Nb4 {[%clk 0:01:10.7]} 35... Bxe2 {[%clk 0:00:17.6]} 36.
Kxe2 {[%clk 0:01:11.6]} 36... Kd6 {[%clk 0:00:17.4]} 37. g4 {[%clk 0:01:11.8]}
37... a5 {[%clk 0:00:18]} 38. Nc2 {[%clk 0:01:10.4]} 38... Kc5 {[%clk 0:00:16]}
39. Kd3 {[%clk 0:01:10.2]} 39... Na6 {[%clk 0:00:14.7]} 40. Nd4 {[%clk
0:01:09.5]} 40... Nc7 {[%clk 0:00:14.1]} 41. Ne2 {[%clk 0:01:05.5]} 41... e5
{[%clk 0:00:11.7]} 42. Nc3 {[%clk 0:01:03.6]} 42... Ne6 {[%clk 0:00:11.8]} 43.
Na4+ {[%clk 0:01:03]} 43... Kb5 {[%clk 0:00:10.8]} 44. Nc3+ {[%clk 0:01:03.4]}
44... Kc5 {[%clk 0:00:09.9]} 45. g3 {[%clk 0:01:03.5]} 45... b5 {[%clk
0:00:08.1]} 46. Nd5 {[%clk 0:01:03.4]} 46... Nd4 {[%clk 0:00:07.2]} 47. f4
{[%clk 0:01:00.1]} 47... Nc6 {[%clk 0:00:05.2]} 48. Ne3 {[%clk 0:00:57.6]} 48...
g6 {[%clk 0:00:03.6]} 49. Nd5 {[%clk 0:00:56.3]} 49... b4 {[%clk 0:00:03.6]} 50.
Nxf6 {[%clk 0:00:55.4]} 50... bxa3 {[%clk 0:00:03.1]} 51. bxa3 {[%clk
0:00:56.3]} 51... h6 {[%clk 0:00:02]} 52. Ng8 {[%clk 0:00:54.6]} 52... h5 {[%clk
0:00:02.6]} 53. gxh5 {[%clk 0:00:54.1]} 53... gxh5 {[%clk 0:00:03.5]} 54. f5
{[%clk 0:00:53.2]} 54... Kd6 {[%clk 0:00:01.9]} 55. Nf6 {[%clk 0:00:52.5]} 55...
Nd4 {[%clk 0:00:00.1]} 56. Nxh5 {[%clk 0:00:51.9]} 1-0